bitfinex/quotes_BTCUSD_20240823
["timestamp","ask_amount","ask_price","bid_price","bid_amount"]
[1724398095670,1.19543681,61160.0,61159.0,0.032164]
[1724398095875,1.19843681,61160.0,61159.0,0.032164]
[1724398096260,0.12565406,61160.0,61159.0,0.032164]
[1724398096693,0.03665406,61160.0,61159.0,0.032164]
[1724398096869,0.02765406,61160.0,61159.0,0.032164]
[1724398097279,0.03565406,61160.0,61159.0,1.10534383]
[1724398097486,0.03565406,61160.0,61159.0,1.12834383]
[1724398097487,0.02765406,61160.0,61159.0,1.12834383]
[1724398097851,0.00455406,61160.0,61159.0,1.37512358]
[1724398097971,0.49229154,61175.0,61172.0,0.163472]
[1724398098173,0.49229154,61175.0,61171.0,0.163475]
[1724398098432,0.000824,61180.0,61173.0,0.00832196]
[1724398098633,0.000824,61180.0,61173.0,0.00326896]
[1724398098978,0.000824,61180.0,61174.0,0.00831879]
[1724398099180,0.000824,61180.0,61175.0,0.16673288]
[1724398099382,0.000824,61180.0,61175.0,0.00326888]
[1724398099582,0.000824,61180.0,61176.0,0.00826262]
[1724398099792,0.000824,61180.0,61177.0,0.00326882]
[1724398100180,0.000824,61180.0,61178.0,0.00825627]
[1724398101105,0.02646453,61180.0,61178.0,0.00825627]
[1724398101330,0.02646453,61180.0,61175.0,0.00326882]
[1724398101531,0.02746453,61180.0,61179.0,0.0082531]
[1724398101734,0.02746453,61180.0,61175.0,0.00326882]
[1724398101938,0.02746453,61180.0,61179.0,0.0082531]
[1724398102139,0.02746453,61180.0,61165.0,0.002]
[1724398102140,0.02646453,61180.0,61170.0,0.326956]
[1724398102254,0.02746453,61180.0,61179.0,0.0082531]
[1724398102457,0.02746453,61180.0,61173.0,0.163469]
[1724398102677,0.02746453,61180.0,61174.0,0.19473596]
[1724398102922,0.02646453,61180.0,61174.0,0.19473596]
[1724398103326,0.02846453,61180.0,61174.0,0.19473596]
[1724398103545,0.02746453,61180.0,61179.0,0.163454]
[1724398103754,0.02746453,61180.0,61179.0,0.51663149]
[1724398104006,0.02746453,61180.0,61179.0,0.85172214]
[1724398104201,0.02746453,61180.0,61179.0,0.52481314]
[1724398104405,0.02646453,61180.0,61179.0,0.85172214]
[1724398104604,0.02646453,61180.0,61179.0,1.01572512]
[1724398104827,0.02746453,61180.0,61179.0,0.68881612]
[1724398104958,0.02746453,61180.0,61179.0,1.01572512]
[1724398105308,0.02646453,61180.0,61179.0,1.01572512]
[1724398105512,0.02746453,61180.0,61179.0,1.01872512]
[1724398105922,0.02746453,61180.0,61179.0,1.34663412]
[1724398106075,0.02746453,61180.0,61179.0,1.02072512]
[1724398106281,0.02746453,61180.0,61179.0,1.34763412]
[1724398107126,0.02846453,61180.0,61179.0,1.34763412]
[1724398110421,0.000824,61192.0,61191.0,1.143957]
[1724398110651,0.000824,61192.0,61191.0,1.5396936]
[1724398111151,0.000824,61192.0,61191.0,1.5406936]
[1724398111347,0.000824,61192.0,61191.0,1.8685386]
[1724398111985,0.001824,61192.0,61191.0,1.8685386]
[1724398112382,0.002824,61192.0,61191.0,1.8715386]
[1724398112831,0.02845238,61192.0,61191.0,1.8715386]
[1724398113489,0.02745238,61192.0,61191.0,1.8715386]
[1724398113693,0.02645238,61192.0,61191.0,1.8685386]
[1724398113895,0.02745238,61192.0,61191.0,1.8825386]
[1724398114094,0.02845238,61192.0,61191.0,1.8965386]
[1724398114296,0.02745238,61192.0,61191.0,1.8825386]
[1724398114773,0.02745238,61192.0,61191.0,1.35298918]
[1724398114958,0.02745238,61192.0,61191.0,1.36698918]
[1724398114959,0.02845238,61192.0,61191.0,1.36698918]
[1724398115298,0.02745238,61192.0,61191.0,1.02614418]
[1724398115496,0.02745238,61192.0,61191.0,0.69929918]
[1724398115923,0.02745238,61192.0,61191.0,1.02614418]
[1724398116123,0.02745238,61192.0,61191.0,0.0220292]
[1724398116542,0.02745238,61192.0,61191.0,0.3488742]
[1724398116779,0.02645238,61192.0,61191.0,0.4982962]
[1724398116983,0.02645238,61192.0,61191.0,0.8391412]
[1724398117154,0.02745238,61192.0,61191.0,0.8391412]
[1724398117524,0.02745238,61192.0,61191.0,0.8531412]
[1724398117737,0.02645238,61192.0,61191.0,0.8391412]
[1724398117942,0.02745238,61192.0,61191.0,0.5352962]
[1724398118140,0.02745238,61192.0,61191.0,0.5472962]
[1724398118340,0.02745238,61192.0,61191.0,0.5352962]
[1724398118548,0.02645238,61192.0,61191.0,0.5212962]
[1724398118751,0.02645238,61192.0,61191.0,0.5332962]
[1724398118951,0.02745238,61192.0,61191.0,0.5472962]
[1724398120089,0.02745238,61192.0,61191.0,0.5352962]
[1724398120302,0.02245238,61192.0,61191.0,0.5352962]
[1724398120536,0.02345238,61192.0,61191.0,0.5472962]
[1724398120840,0.02145238,61192.0,61191.0,0.5212962]
[1724398121035,0.02245238,61192.0,61191.0,0.5472962]
[1724398121242,0.02145238,61192.0,61191.0,0.5352962]
[1724398121656,0.02245238,61192.0,61191.0,0.5472962]
[1724398121859,0.02245238,61192.0,61191.0,0.2204512]
[1724398122065,0.02245238,61192.0,61191.0,0.5472962]
[1724398122354,0.02245238,61192.0,61191.0,0.2204512]
[1724398122969,0.02245238,61192.0,61191.0,0.5472962]
[1724398123619,0.02245238,61192.0,61191.0,0.8741412]
[1724398124125,0.02245238,61192.0,61191.0,0.5472962]
[1724398130354,0.02245238,61192.0,61191.0,0.5482026]
[1724398130756,0.02327638,61192.0,61191.0,0.5482026]
[1724398131700,0.01327638,61192.0,61191.0,0.5482026]
[1724398132306,0.09557638,61192.0,61191.0,0.0349356]
[1724398132505,0.01327638,61192.0,61191.0,0.0349356]
[1724398132704,0.01327638,61192.0,61191.0,0.03820356]
[1724398133446,0.01327638,61192.0,61191.0,0.1983576]
[1724398134279,0.01327638,61192.0,61191.0,0.5252026]
[1724398134447,0.01327638,61192.0,61191.0,0.5482026]
[1724398137782,0.01327638,61192.0,61191.0,0.8750476]
[1724398139212,0.01327638,61192.0,61191.0,1.2018926]
[1724398139575,0.01327638,61192.0,61191.0,1.69474058]
[1724398140095,0.01327638,61192.0,61191.0,1.68074058]
[1724398140503,0.01327638,61192.0,61191.0,1.68274058]
[1724398140735,0.01327638,61192.0,61191.0,1.68074058]
[1724398140882,0.01327638,61192.0,61191.0,1.35189558]
[1724398141083,0.01227638,61192.0,61191.0,1.33989558]
[1724398141263,0.01327638,61192.0,61191.0,1.35389558]
[1724398141466,0.01427638,61192.0,61191.0,1.03905058]
[1724398142146,0.01427638,61192.0,61191.0,0.8750476]
[1724398142764,0.01327638,61192.0,61191.0,0.8610476]
[1724398143173,0.01327638,61192.0,61191.0,0.8750476]
[1724398143174,0.01427638,61192.0,61191.0,0.8750476]
[1724398143341,0.01427638,61192.0,61191.0,0.5482026]
[1724398143572,0.09637638,61192.0,61191.0,0.5342026]
[1724398143932,0.09737638,61192.0,61191.0,0.8750476]
[1724398145598,0.09737638,61192.0,61191.0,0.0349356]
[1724398145808,0.08737638,61192.0,61191.0,0.0349356]
[1724398146020,0.085924,61192.0,61191.0,0.1983576]
[1724398146243,0.11155638,61192.0,61191.0,0.1983576]
[1724398147008,0.11155638,61192.0,61191.0,0.5252026]
[1724398148417,0.11155638,61192.0,61191.0,0.8520476]
[1724398148824,0.11155638,61192.0,61191.0,0.8750476]
[1724398149199,0.02845638,61192.0,61191.0,0.8750476]
[1724398154082,0.02845638,61192.0,61191.0,1.36589558]
[1724398154537,0.02845638,61192.0,61191.0,1.69374058]
[1724398154742,0.02845638,61192.0,61191.0,1.69474058]
[1724398155735,0.02845638,61192.0,61191.0,1.69274058]
[1724398156152,0.002824,61192.0,61191.0,1.69274058]
[1724398157370,0.002824,61192.0,61191.0,1.36589558]
[1724398158125,0.002824,61192.0,61191.0,1.03905058]
[1724398161385,0.002824,61192.0,61191.0,1.36589558]
[1724398162763,0.002824,61192.0,61191.0,1.36789558]
[1724398163721,0.002824,61192.0,61191.0,1.36589558]
[1724398164433,0.002824,61192.0,61191.0,1.03905058]
[1724398166119,0.02845442,61192.0,61191.0,1.03905058]
[1724398168349,0.10875442,61192.0,61191.0,1.03905058]
[1724398172532,0.17515442,61192.0,61191.0,0.95527367]
[1724398181303,0.17515442,61192.0,61191.0,0.62842867]
[1724398187822,0.17515442,61192.0,61191.0,0.0349356]
[1724398188243,0.17515442,61192.0,61191.0,0.0499064]
[1724398188472,0.17515442,61192.0,61191.0,0.05811701]
[1724398189257,0.17515442,61192.0,61191.0,0.22153901]
[1724398189463,0.17515442,61192.0,61191.0,0.05811701]
[1724398194337,0.17515442,61192.0,61191.0,0.22153901]
[1724398194541,0.17515442,61192.0,61191.0,0.05811701]
[1724398198063,0.17515442,61192.0,61191.0,0.22153901]
[1724398198262,0.17515442,61192.0,61191.0,0.05811701]
[1724398209540,0.25687442,61192.0,61191.0,0.05811701]
[1724398216228,1.72159251,61192.0,61191.0,0.03511701]
[1724398216394,1.72159251,61192.0,61180.0,0.0009064]
[1724398216395,0.491347,61181.0,61180.0,0.0009064]
[1724398216590,1.36916907,61181.0,61180.0,0.0009064]
[1724398216987,1.3948104,61181.0,61180.0,0.0009064]
[1724398218015,1.55881338,61181.0,61180.0,0.0009064]
[1724398218216,1.55881338,61181.0,61180.0,0.0079064]
[1724398218217,1.55981338,61181.0,61180.0,0.0079064]
[1724398218413,1.55981338,61181.0,61180.0,0.0009064]
[1724398218414,1.55881338,61181.0,61180.0,0.0009064]
[1724398218670,1.55581338,61181.0,61180.0,0.0009064]
[1724398218813,1.55581338,61181.0,61180.0,0.0029064]
[1724398218814,1.56829339,61181.0,61180.0,0.0029064]
[1724398219024,1.56929339,61181.0,61180.0,0.0059064]
[1724398219650,1.56729339,61181.0,61180.0,0.0059064]
[1724398219846,1.56629339,61181.0,61180.0,0.0029064]
[1724398220126,1.56829339,61181.0,61180.0,0.0029064]
[1724398220363,1.56929339,61181.0,61180.0,0.0049064]
[1724398220985,1.56629339,61181.0,61180.0,0.0029064]
[1724398221335,1.56629339,61181.0,61180.0,0.0039064]
[1724398221336,1.56929339,61181.0,61180.0,0.0039064]
[1724398222161,1.56629339,61181.0,61180.0,0.0039064]
[1724398223230,1.22991538,61181.0,61180.0,0.0039064]
[1724398223439,0.33189033,61181.0,61180.0,0.0039064]
[1724398223918,0.65878833,61181.0,61180.0,0.0039064]
[1724398225033,0.65878833,61181.0,61180.0,0.0029064]
[1724398225233,0.65778833,61181.0,61180.0,0.0009064]
[1724398225465,0.33389033,61181.0,61180.0,0.0039064]
[1724398226106,0.33389033,61181.0,61180.0,0.0009064]
[1724398226574,0.33389033,61181.0,61180.0,0.0039064]
[1724398226742,0.66078833,61181.0,61180.0,0.0039064]
[1724398227154,0.98768633,61181.0,61180.0,0.0039064]
[1724398229882,0.98868633,61181.0,61180.0,0.0039064]
[1724398230091,0.98768633,61181.0,61180.0,0.0039064]
[1724398230292,0.98868633,61181.0,61180.0,0.0039064]
[1724398230727,0.99068633,61181.0,61180.0,0.0039064]
[1724398230930,1.48158731,61181.0,61180.0,0.0039064]
[1724398231132,1.47858731,61181.0,61180.0,0.0039064]
[1724398231725,0.98768633,61181.0,61180.0,0.0039064]
[1724398231936,1.0679124,61181.0,61180.0,0.0039064]
[1724398232730,0.76665546,61181.0,61180.0,0.0039064]
[1724398238551,1.58445444,61181.0,61180.0,0.0039064]
[1724398238757,1.58745444,61181.0,61180.0,0.0039064]
[1724398239300,1.58445444,61181.0,61180.0,0.0039064]
[1724398239949,1.58545444,61181.0,61180.0,0.0039064]
[1724398240154,1.58745444,61181.0,61180.0,0.0039064]
[1724398240744,1.25755644,61181.0,61180.0,0.0039064]
[1724398241993,1.01332739,61181.0,61180.0,0.0039064]
[1724398242193,1.09355346,61181.0,61180.0,0.0039064]
[1724398246468,1.09455346,61181.0,61180.0,0.0039064]
[1724398246681,1.09655346,61181.0,61180.0,0.0039064]
[1724398247014,1.58745444,61181.0,61180.0,0.0039064]
[1724398247131,1.68745444,61181.0,61180.0,0.0039064]
[1724398247539,0.163505,61160.0,61151.0,0.0123]
[1724398247746,0.71144207,61160.0,61151.0,0.0002]
[1724398248205,0.73709033,61160.0,61151.0,0.0002]
[1724398248809,0.73809033,61160.0,61159.0,0.0039064]
[1724398249005,0.41107933,61160.0,61159.0,0.0039064]
[1724398249267,0.41207933,61160.0,61159.0,0.0099064]
[1724398249442,0.41107933,61160.0,61159.0,0.0069064]
[1724398249603,0.41107933,61160.0,61159.0,0.0099064]
[1724398249604,0.41207933,61160.0,61159.0,0.0099064]
[1724398250009,0.41107933,61160.0,61159.0,0.0039064]
[1724398250372,0.41107933,61160.0,61159.0,0.0069064]
[1724398251234,0.41007933,61160.0,61159.0,0.0039064]
[1724398251924,0.41107933,61160.0,61159.0,0.0009064]
[1724398252126,0.41107933,61160.0,61159.0,0.0019064]
[1724398252333,0.32985326,61160.0,61159.0,0.0009064]
[1724398252739,0.33185326,61160.0,61159.0,0.0009064]
[1724398253115,0.32985326,61160.0,61159.0,0.0009064]
[1724398254066,0.16634826,61160.0,61159.0,0.0009064]
[1724398254270,0.32985326,61160.0,61159.0,0.0009064]
[1724398254691,0.33085326,61160.0,61159.0,0.0009064]
[1724398255269,0.32985326,61160.0,61159.0,0.0009064]
[1724398255487,0.16634826,61160.0,61159.0,0.0009064]
[1724398255831,0.16834826,61160.0,61159.0,0.0009064]
[1724398256324,0.16734826,61160.0,61159.0,0.0009064]
[1724398256678,0.16634826,61160.0,61159.0,0.0009064]
[1724398257902,0.16734826,61160.0,61159.0,0.0009064]
[1724398258554,0.16634826,61160.0,61159.0,0.0009064]
[1724398258779,0.16734826,61160.0,61159.0,0.0009064]
[1724398259110,0.16734826,61160.0,61159.0,0.0019064]
[1724398260533,0.33085326,61160.0,61159.0,0.0019064]
[1724398260747,0.65786426,61160.0,61159.0,0.0019064]
[1724398260943,0.98487526,61160.0,61159.0,0.0019064]
[1724398261145,0.65786426,61160.0,61159.0,0.0019064]
[1724398261344,0.65686426,61160.0,61159.0,0.0019064]
[1724398261545,0.65686426,61160.0,61159.0,0.0009064]
[1724398261930,0.98487526,61160.0,61159.0,0.0009064]
[1724398262175,0.65786426,61160.0,61159.0,0.0009064]
[1724398262379,0.0801,61157.0,61146.0,0.327083]
[1724398262578,0.08022607,61155.0,61147.0,0.163538]
[1724398263828,0.24374507,61155.0,61147.0,0.163538]
[1724398264029,0.0626,61154.0,61147.0,0.163538]
[1724398264431,0.0626,61154.0,61142.0,0.4771]
[1724398264432,0.24375807,61150.0,61142.0,0.4771]
[1724398264672,0.48417807,61153.0,61142.0,0.4771]
[1724398264843,0.327061,61151.0,61142.0,0.4771]
[1724398265044,0.327061,61151.0,61147.0,0.001]
[1724398265243,0.163531,61151.0,61142.0,0.640653]
[1724398265456,0.163532,61150.0,61142.0,0.640653]
[1724398265991,0.164532,61150.0,61143.0,0.023]
[1724398266197,0.163532,61150.0,61143.0,0.023]
[1724398266405,0.163529,61151.0,61143.0,0.023]
[1724398266555,0.164529,61151.0,61143.0,0.18655]
[1724398267362,0.001,61151.0,61143.0,0.18655]
[1724398267915,0.002,61151.0,61145.0,0.163545]
[1724398268131,0.001,61151.0,61143.0,0.513646]
[1724398268333,0.001,61150.0,61143.0,0.029]
[1724398268509,0.001,61150.0,61144.0,0.163547]
[1724398268713,0.18277611,61153.0,61144.0,0.163547]
[1724398268888,0.002,61151.0,61144.0,0.163547]
[1724398269103,0.002,61151.0,61143.0,0.028]
[1724398269262,0.001,61151.0,61146.0,0.163541]
[1724398269458,0.001,61151.0,61144.0,0.00327053]
[1724398269459,0.001,61150.0,61149.0,0.163534]
[1724398269883,0.10255004,61153.0,61149.0,0.186534]
[1724398270289,0.10255004,61153.0,61151.0,0.163528]
[1724398271136,0.10255004,61153.0,61149.0,0.350065]
[1724398271359,0.001,61151.0,61150.0,0.16353]
[1724398271490,0.10255004,61153.0,61150.0,0.16353]
[1724398271926,0.10255004,61153.0,61151.0,0.003]
[1724398272129,0.10255004,61153.0,61151.0,0.163529]
[1724398272308,0.10355004,61153.0,61151.0,0.163529]
[1724398272543,0.02665004,61153.0,61152.0,0.163526]
[1724398272745,0.02565004,61153.0,61152.0,0.490579]
[1724398273110,0.02665004,61153.0,61152.0,0.490579]
[1724398274151,0.02665004,61153.0,61152.0,0.163526]
[1724398274513,0.02565004,61153.0,61152.0,0.163526]
[1724398274807,0.02565004,61153.0,61151.0,0.003]
[1724398274984,0.02665004,61153.0,61149.0,0.179534]
[1724398275192,0.02665004,61153.0,61150.0,0.186531]
[1724398275409,0.02665004,61153.0,61152.0,0.003]
[1724398275410,0.02565004,61153.0,61152.0,0.003]
[1724398275635,0.02565004,61153.0,61150.0,0.186531]
[1724398275812,0.02665004,61153.0,61150.0,0.023]
[1724398276037,0.02665004,61153.0,61151.0,0.004]
[1724398276252,0.02665004,61153.0,61150.0,0.023]
[1724398276548,0.02565004,61153.0,61150.0,0.023]
[1724398276909,0.02565004,61153.0,61152.0,0.004]
[1724398278345,0.17295004,61153.0,61152.0,0.004]
[1724398278546,0.0818,61151.0,61144.0,0.327096]
[1724398278791,0.0818,61151.0,61145.0,0.023]
[1724398278792,0.08022607,61150.0,61145.0,0.023]
[1724398278935,0.0818,61149.0,61145.0,0.023]
[1724398279145,0.0818,61149.0,61145.0,0.186545]
[1724398279359,0.0818,61149.0,61146.0,0.163542]
[1724398279561,0.0818,61149.0,61147.0,0.023]
[1724398279562,0.08140634,61149.0,61147.0,0.023]
[1724398279994,0.08240634,61149.0,61147.0,0.186539]
[1724398280611,0.08340634,61149.0,61147.0,0.186539]
[1724398281038,0.001,61149.0,61147.0,0.186539]
[1724398281660,0.002,61149.0,61147.0,0.194539]
[1724398282288,0.002,61149.0,61148.0,0.163537]
[1724398282491,0.002,61149.0,61148.0,0.186537]
[1724398283207,0.001,61149.0,61148.0,0.186537]
[1724398283628,0.002,61149.0,61148.0,0.1874434]
[1724398284059,0.002,61149.0,61148.0,0.0239064]
[1724398284477,0.002,61149.0,61148.0,0.1874434]
[1724398285117,0.002,61149.0,61148.0,0.5145184]
[1724398285319,0.001,61149.0,61148.0,0.5145184]
[1724398285717,0.002,61149.0,61148.0,0.5225184]
[1724398288056,0.002,61149.0,61148.0,0.8495934]
[1724398288253,0.002,61149.0,61148.0,1.35867138]
[1724398288460,0.002,61149.0,61148.0,1.35667138]
[1724398288665,0.002,61149.0,61148.0,0.8495934]
[1724398288869,0.002,61149.0,61148.0,0.5225184]
[1724398289297,0.001,61149.0,61148.0,0.5225184]
[1724398289508,0.02565004,61153.0,61151.0,0.163528]
[1724398289743,0.02565004,61153.0,61152.0,0.186526]
[1724398289946,0.02565004,61153.0,61152.0,0.513579]
[1724398290396,0.02565004,61153.0,61152.0,0.186526]
[1724398290847,0.02665004,61153.0,61152.0,0.186526]
[1724398292117,0.02665004,61153.0,61152.0,0.192526]
[1724398292328,0.02565004,61153.0,61152.0,0.029]
[1724398293153,0.02565004,61153.0,61152.0,0.04]
[1724398293326,0.02565004,61153.0,61152.0,0.203526]
[1724398293526,0.02565004,61153.0,61152.0,0.04]
[1724398293730,0.02565004,61153.0,61152.0,0.203526]
[1724398294200,0.02565004,61153.0,61152.0,0.04]
[1724398295261,0.02647404,61153.0,61152.0,0.04]
[1724398297635,0.08717404,61153.0,61152.0,0.04]
[1724398298037,0.16647404,61153.0,61152.0,0.04]
[1724398326348,0.16647404,61153.0,61152.0,0.017]
[1724398326550,0.98409404,61153.0,61152.0,0.017]
[1724398326756,1.08225627,61153.0,61152.0,0.017]
[1724398326976,0.87795486,61153.0,61152.0,0.017]
[1724398327188,0.77974883,61153.0,61152.0,0.017]
[1724398327398,0.7061462,61153.0,61152.0,0.017]
[1724398327811,0.65704604,61153.0,61152.0,0.017]
[1724398328026,0.16647404,61153.0,61152.0,0.017]
[1724398328471,0.16647404,61153.0,61152.0,0.04]
[1724398330645,0.16647404,61153.0,61152.0,0.857632]
[1724398330646,0.02647404,61153.0,61152.0,0.857632]
[1724398331623,0.02647404,61153.0,61152.0,0.840632]
[1724398332418,0.02847404,61153.0,61152.0,0.860632]
[1724398332819,0.02747404,61153.0,61152.0,0.852632]
[1724398333203,0.02847404,61153.0,61152.0,0.863632]
[1724398333813,0.02847404,61153.0,61152.0,0.851632]
[1724398333814,0.02747404,61153.0,61152.0,0.851632]
[1724398334486,0.02847404,61153.0,61152.0,0.865632]
[1724398338364,0.02847404,61153.0,61152.0,0.834443]
[1724398340456,0.02847404,61153.0,61152.0,0.857443]
[1724398344890,0.02808038,61153.0,61152.0,0.857443]
[1724398348322,0.02808038,61153.0,61152.0,1.02144598]
[1724398349733,0.02808038,61153.0,61152.0,1.34849898]
[1724398351466,0.02808038,61153.0,61152.0,1.67755198]
[1724398352197,0.02708038,61153.0,61152.0,1.66355198]
[1724398352397,0.02708038,61153.0,61152.0,1.65255198]
[1724398352598,0.02608038,61153.0,61152.0,1.65255198]
[1724398352799,0.02708038,61153.0,61152.0,1.66655198]
[1724398353227,0.02708038,61153.0,61152.0,2.21869398]
[1724398353427,0.02708038,61153.0,61152.0,2.14525216]
[1724398353628,0.02708038,61153.0,61152.0,2.14524072]
[1724398353828,0.02708038,61153.0,61152.0,2.57011769]
[1724398354212,0.02708038,61153.0,61152.0,2.6281697]
[1724398354599,0.02608038,61153.0,61152.0,2.49188974]
[1724398355398,0.02608038,61153.0,61152.0,2.50588974]
[1724398355603,0.02608038,61153.0,61152.0,2.49188974]
[1724398355814,0.02608038,61153.0,61152.0,2.47788974]
[1724398356013,0.02608038,61153.0,61152.0,2.67828974]
[1724398356217,0.000824,61160.0,61159.0,1.56979807]
[1724398356394,0.000824,61160.0,61159.0,1.90564131]
[1724398356600,0.000824,61160.0,61159.0,2.18381705]
[1724398356772,0.000824,61160.0,61159.0,2.6197166]
[1724398356773,0.02646481,61160.0,61159.0,2.6197166]
[1724398356997,0.02646481,61160.0,61159.0,2.64413673]
[1724398357193,0.02646481,61160.0,61159.0,2.56604346]
[1724398357394,0.02646481,61160.0,61159.0,2.64407883]
[1724398357770,0.02646481,61160.0,61159.0,2.5464562]
[1724398357897,0.02646481,61160.0,61159.0,2.5604562]
[1724398358101,0.02646481,61160.0,61159.0,2.5464562]
[1724398358301,0.02646481,61160.0,61159.0,2.54642584]
[1724398358501,0.02646481,61160.0,61159.0,2.65798988]
[1724398358730,0.02646481,61160.0,61159.0,2.73282584]
[1724398358933,0.0808,61177.0,61159.0,2.73282584]
[1724398358934,0.0808,61177.0,61176.0,1.146237]
[1724398359139,0.1407,61180.0,61179.0,0.817272]
[1724398359341,0.000824,61181.0,61180.0,0.82052841]
[1724398359554,0.000824,61181.0,61180.0,1.38839305]
[1724398359759,0.000824,61181.0,61180.0,1.41139305]
[1724398359916,0.02645962,61181.0,61180.0,1.41139305]
[1724398361787,0.02645962,61181.0,61180.0,1.43839305]
[1724398365444,0.02645962,61181.0,61180.0,1.44039305]
[1724398366889,0.02645962,61181.0,61180.0,1.42639305]
[1724398367090,0.02645962,61181.0,61180.0,1.42739305]
[1724398367504,0.02645962,61181.0,61180.0,1.44139305]
[1724398368524,0.02645962,61181.0,61180.0,1.42739305]
[1724398368731,0.02645962,61181.0,61180.0,1.41339305]
[1724398368938,0.02645962,61181.0,61180.0,1.42739305]
[1724398369168,0.02645962,61181.0,61180.0,1.44139305]
[1724398369910,0.02645962,61181.0,61180.0,1.76829705]
[1724398370113,0.02645962,61181.0,61180.0,1.78429705]
[1724398370719,0.02645962,61181.0,61180.0,1.77029705]
[1724398370902,0.02645962,61181.0,61180.0,1.85629705]
[1724398371103,0.02645962,61181.0,61180.0,1.88429705]
[1724398371876,0.02645962,61181.0,61180.0,1.87029705]
[1724398372079,0.02645962,61181.0,61180.0,2.05669705]
[1724398372282,0.02645962,61181.0,61180.0,1.88429705]
[1724398374097,0.02645962,61181.0,61180.0,1.89367783]
[1724398375607,0.17065962,61181.0,61180.0,1.87767783]
[1724398375815,0.17065962,61181.0,61180.0,1.46116698]
[1724398376021,0.17065962,61181.0,61180.0,1.51839305]
[1724398377889,0.17065962,61181.0,61180.0,1.44139305]
[1724398380572,0.17065962,61181.0,61180.0,1.11248905]
[1724398382822,0.17065962,61181.0,61180.0,0.78558505]
[1724398382994,0.17065962,61181.0,61180.0,0.10822607]
[1724398383394,0.17065962,61181.0,61180.0,0.028]
[1724398383823,0.17065962,61181.0,61180.0,0.014]
[1724398384607,0.17065962,61181.0,61180.0,0.009]
[1724398385050,0.17065962,61181.0,61180.0,0.185452]
[1724398385247,0.17065962,61181.0,61180.0,0.022]
[1724398385469,0.17065962,61181.0,61180.0,0.015]
[1724398385672,0.17065962,61181.0,61180.0,0.178452]
[1724398386237,0.17065962,61181.0,61180.0,0.505356]
[1724398387051,0.17065962,61181.0,61180.0,0.517356]
[1724398387470,0.17065962,61181.0,61180.0,0.505356]
[1724398387671,0.17065962,61181.0,61180.0,0.490356]
[1724398387879,0.17065962,61181.0,61180.0,0.513356]
[1724398388233,0.17065962,61181.0,61180.0,0.186452]
[1724398389101,0.17065962,61181.0,61180.0,0.513356]
[1724398389904,0.17065962,61181.0,61180.0,0.023]
[1724398390092,0.17065962,61181.0,61180.0,0.186452]
[1724398391704,0.17065962,61181.0,61180.0,0.513356]
[1724398391862,0.17065962,61181.0,61180.0,0.186452]
[1724398392942,0.17065962,61181.0,61180.0,0.023]
[1724398397195,0.33410862,61181.0,61180.0,0.023]
[1724398397653,1.06813069,61181.0,61180.0,0.023]
[1724398398289,1.06813069,61181.0,61180.0,0.009]
[1724398398711,1.06813069,61181.0,61180.0,0.012]
[1724398398921,1.11701297,61181.0,61180.0,0.012]
[1724398399137,0.33410862,61181.0,61180.0,0.018]
[1724398408004,0.17065962,61181.0,61180.0,0.018]
[1724398425198,0.02645962,61181.0,61180.0,0.508356]
[1724398427152,0.02645962,61181.0,61180.0,0.83526]
[1724398431122,0.02645962,61181.0,61180.0,0.508356]
[1724398431705,0.02645962,61181.0,61180.0,0.83526]
[1724398432943,0.05972,61185.0,61184.0,0.163441]
[1724398433353,0.08535706,61185.0,61182.0,0.32689]
[1724398433564,0.08535706,61185.0,61183.0,0.163443]
[1724398434121,0.08535706,61185.0,61184.0,0.002]
[1724398434307,0.08535706,61185.0,61184.0,0.165441]
[1724398434508,0.08535706,61185.0,61182.0,0.326892]
[1724398434703,0.08535706,61185.0,61183.0,0.163442]
[1724398434967,0.08535706,61185.0,61184.0,0.008]
[1724398435111,0.08535706,61185.0,61184.0,0.171441]
[1724398435539,0.08535706,61185.0,61184.0,0.165441]
[1724398435742,0.16665706,61185.0,61184.0,0.163441]
[1724398435956,0.16665706,61185.0,61183.0,0.171444]
[1724398436609,0.16665706,61185.0,61183.0,0.163444]
[1724398436826,0.16748106,61185.0,61183.0,0.163444]
[1724398437246,0.0635,61184.0,61183.0,0.163444]
[1724398438417,0.0635,61184.0,61183.0,0.166444]
[1724398438566,0.0635,61184.0,61183.0,0.163444]
[1724398438773,0.0635,61184.0,61183.0,0.173444]
[1724398439372,0.0635,61184.0,61183.0,0.177444]
[1724398439642,0.0635,61184.0,61183.0,0.014]
[1724398440785,0.1452,61184.0,61183.0,0.014]
[1724398444342,0.55556547,61184.0,61183.0,0.014]
[1724398444476,1.04263107,61184.0,61183.0,0.014]
[1724398444685,0.635523,61184.0,61183.0,0.014]
[1724398444938,0.308641,61184.0,61183.0,0.014]
[1724398445612,0.1452,61184.0,61183.0,0.014]
[1724398449495,0.1452,61184.0,61183.0,0.0149064]
[1724398457392,1.56446535,61184.0,61183.0,0.0149064]
[1724398457608,1.56446535,61184.0,61162.0,0.12257679]
[1724398457609,0.309589,61167.0,61162.0,0.12257679]
[1724398457798,0.1461,61166.0,61162.0,0.12257679]
[1724398458201,0.1461,61166.0,61160.0,0.1644104]
[1724398458354,0.17174533,61166.0,61161.0,0.163501]
[1724398458985,0.17174533,61166.0,61162.0,0.003]
[1724398460180,0.17174533,61166.0,61161.0,0.163502]
[1724398460645,0.17174533,61166.0,61160.0,0.0009064]
[1724398460853,0.17500273,61166.0,61161.0,0.1635]
[1724398461069,0.17600273,61166.0,61162.0,0.006]
[1724398461573,0.17500273,61166.0,61161.0,0.1635]
[1724398461927,0.17500273,61166.0,61160.0,0.3279154]
[1724398461928,0.0032574,61165.0,61160.0,0.0069064]
[1724398463310,0.0032574,61165.0,61160.0,0.0009064]
[1724398463515,0.0032574,61165.0,61162.0,0.001]
[1724398463721,0.17174533,61166.0,61160.0,0.1644114]
[1724398463893,0.17500273,61166.0,61160.0,0.1644114]
[1724398464067,0.17600273,61166.0,61161.0,0.005]
[1724398464470,0.17174533,61166.0,61161.0,0.163502]
[1724398464996,0.17274533,61166.0,61161.0,0.163502]
[1724398465237,0.17274533,61166.0,61160.0,0.1694114]
[1724398465411,0.17274533,61166.0,61162.0,0.002]
[1724398465822,0.0032574,61165.0,61162.0,0.002]
[1724398466697,0.0032574,61165.0,61161.0,0.006]
[1724398467239,0.0032574,61165.0,61160.0,0.0009064]
[1724398467240,0.1402,61164.0,61160.0,0.0009064]
[1724398467358,0.0032574,61163.0,61160.0,0.0009064]